bitfinex/quotes_SOLUSD_20230116
["timestamp","ask_amount","ask_price","bid_price","bid_amount"]
[1673835550111,25.24,23.49,23.451,32.0]
[1673835550324,31.94,23.489,23.46,25.05]
[1673835550642,31.94,23.489,23.441,111.9664]
[1673835550643,31.94,23.489,23.45,25.24]
[1673835550862,17.0,23.488,23.451,52.0]
[1673835551052,31.95,23.487,23.452,17.0]
[1673835551257,31.95,23.487,23.453,51.99]
[1673835551484,25.07,23.48,23.454,17.0]
[1673835551682,31.95,23.487,23.46,25.06]
[1673835551910,17.042127,23.494,23.47,25.05]
[1673835551911,31.94,23.493,23.47,25.05]
[1673835552428,17.042127,23.494,23.471,31.97]
[1673835552643,17.042127,23.494,23.48,25.05]
[1673835552839,17.042127,23.494,23.481,31.96]
[1673835553051,17.042127,23.494,23.482,17.0]
[1673835553255,17.042127,23.494,23.483,31.95]
[1673835553459,31.9,23.519,23.484,17.0]
[1673835553671,30.9,23.519,23.49,25.06]
[1673835554115,30.9,23.519,23.484,102.73908118]
[1673835554327,30.9,23.519,23.488,39.33423479]
[1673835554550,30.9,23.519,23.49,25.06]
[1673835554764,17.023863,23.523,23.5,25.05]
[1673835554957,31.9,23.522,23.5,25.05]
[1673835555274,17.023863,23.523,23.5,66.91101019]
[1673835555483,25.24,23.52,23.5,41.67101019]
[1673835555693,25.24,23.52,23.49,25.06]
[1673835555902,31.9,23.519,23.48,25.26]
[1673835556108,25.24,23.51,23.49,37.50320152]
[1673835556337,31.92,23.509,23.49,37.50320152]
[1673835556551,31.92,23.509,23.481,31.96]
[1673835556752,20.0,23.508,23.48,70.23052275]
[1673835556969,31.92,23.507,23.482,79.31295668]
[1673835557293,20.0,23.506,23.481,31.96]
[1673835557478,25.24,23.5,23.477,31.96]
[1673835557688,25.24,23.5,23.474,34.34243393]
[1673835557689,51.93,23.499,23.474,34.34243393]
[1673835557893,25.24,23.49,23.464,151.6304]
[1673835558123,25.24,23.49,23.464,31.98]
[1673835558124,51.94,23.489,23.464,31.98]
[1673835558323,25.24,23.5,23.47,25.24]
[1673835558535,25.24,23.51,23.48,25.05]
[1673835558750,25.24,23.51,23.481,31.96]
[1673835558948,31.92,23.509,23.481,31.96]
[1673835559164,31.92,23.509,23.481,67.55176311]
[1673835559371,31.9,23.519,23.482,35.59176311]
[1673835559696,25.24,23.51,23.483,31.95]
[1673835559908,31.92,23.509,23.484,17.0]
[1673835560105,31.91,23.517,23.49,25.24]
[1673835560317,20.0,23.516,23.491,48.94]
[1673835560647,20.0,23.516,23.491,119.23229546]
[1673835560867,31.89,23.529,23.5,25.24]
[1673835561053,14.523863,23.523,23.501,31.93]
[1673835561382,25.17,23.52,23.501,81.24448136]
[1673835561698,25.24,23.51,23.481,148.6623]
[1673835561893,31.92,23.509,23.481,31.96]
[1673835562109,25.07,23.5,23.475,31.96]
[1673835562430,25.07,23.5,23.471,31.97]
[1673835562431,51.93,23.499,23.471,31.97]
[1673835562832,51.93,23.499,23.465,31.98]
[1673835563056,25.24,23.49,23.465,31.98]
[1673835563270,51.94,23.489,23.464,116.7023]
[1673835563690,51.94,23.489,23.461,31.98]
[1673835563691,31.94,23.489,23.461,31.98]
[1673835563900,31.94,23.489,23.45,25.24]
[1673835563901,25.38,23.52,23.48,255.29]
[1673835564215,14.523863,23.523,23.51,25.24]
[1673835564431,14.523863,23.523,23.511,31.91]
[1673835564621,14.523863,23.523,23.511,62.2899403]
[1673835564837,14.523863,23.523,23.512,27.94854146]
[1673835565053,25.17,23.54,23.513,31.91]
[1673835565258,25.17,23.54,23.514,17.0]
[1673835565479,31.88,23.539,23.515,31.91]
[1673835565678,31.88,23.533,23.516,17.0]
[1673835565901,31.88,23.539,23.516,37.27033045]
[1673835566111,42.7308,23.534,23.517,17.0]
[1673835566549,31.88,23.533,23.517,17.0]
[1673835566758,42.7308,23.534,23.517,43.45540997]
[1673835566972,31.88,23.533,23.517,43.45540997]
[1673835567159,31.88,23.533,23.511,31.91]
[1673835567374,25.24,23.53,23.502,31.93]
[1673835567603,25.24,23.53,23.5,25.06]
[1673835567604,25.24,23.52,23.497,31.93]
[1673835567800,25.24,23.52,23.491,31.94]
[1673835567801,51.9,23.519,23.491,31.94]
[1673835568013,51.9,23.519,23.487,31.95]
[1673835568429,25.24,23.51,23.487,31.95]
[1673835568639,51.92,23.509,23.481,31.96]
[1673835568856,51.92,23.509,23.477,22.9518233]
[1673835569073,25.24,23.5,23.482,26.5918233]
[1673835569285,51.92,23.509,23.482,26.5918233]
[1673835569806,25.07,23.5,23.481,31.96]
[1673835570019,25.07,23.5,23.476,31.96]
[1673835570231,51.93,23.499,23.474,31.97]
[1673835570630,51.93,23.499,23.465,31.98]
[1673835571066,51.93,23.499,23.466,22.6121118]
[1673835571282,25.24,23.49,23.467,31.97]
[1673835571592,25.24,23.49,23.467,56.83544513]
[1673835571809,20.0,23.489,23.467,24.86544513]
[1673835571998,51.94,23.489,23.454,117.3184]
[1673835572218,51.94,23.489,23.455,54.89478513]
[1673835572538,25.24,23.48,23.455,31.99]
[1673835573045,31.96,23.479,23.451,32.0]
[1673835573259,31.95,23.488,23.46,25.05]
[1673835573469,31.94,23.489,23.461,31.98]
[1673835573679,20.0,23.488,23.461,31.98]
[1673835573890,31.95,23.487,23.455,28.79811846]
[1673835574100,20.0,23.486,23.456,31.99]
[1673835574310,31.95,23.485,23.456,31.99]
[1673835574524,20.0,23.484,23.46,25.05]
[1673835574739,20.0,23.484,23.461,31.98]
[1673835575146,20.0,23.488,23.451,32.0]
[1673835575356,25.07,23.48,23.451,32.0]
[1673835575788,31.96,23.479,23.451,32.0]
[1673835576096,25.24,23.51,23.471,129.3]
[1673835576411,25.24,23.51,23.48,25.05]
[1673835576630,31.92,23.509,23.481,31.96]
[1673835576840,31.92,23.509,23.482,17.0]
[1673835577280,31.92,23.509,23.483,31.95]
[1673835577494,31.92,23.509,23.484,17.0]
[1673835577707,20.0,23.508,23.485,31.95]
[1673835577896,20.0,23.508,23.486,17.0]
[1673835578108,31.92,23.509,23.486,46.66391846]
[1673835578327,25.24,23.51,23.487,59.68211846]
[1673835578550,31.92,23.509,23.488,17.0]
[1673835578861,31.92,23.509,23.489,27.73211846]
[1673835579050,31.9,23.519,23.49,48.94]
[1673835579495,31.9,23.519,23.491,27.73211846]
[1673835579704,31.9,23.519,23.492,17.0]
[1673835579897,25.24,23.51,23.49,31.94]
[1673835580107,25.24,23.51,23.483,25.51254301]
[1673835580108,31.92,23.509,23.483,25.51254301]
[1673835580335,25.24,23.51,23.484,31.95]
[1673835580528,31.9,23.519,23.484,31.95]
[1673835580738,20.0,23.518,23.485,40.24857709]
[1673835580942,31.91,23.517,23.486,31.95]
[1673835581177,20.0,23.516,23.486,31.95]
[1673835581370,31.91,23.515,23.487,17.0]
[1673835581576,20.0,23.514,23.488,31.95]
[1673835581807,31.91,23.513,23.487,27.50587634]
[1673835582017,20.58,23.51,23.482,31.95]
[1673835582211,68.92,23.509,23.471,31.97]
[1673835582424,68.92,23.509,23.464,31.98]
[1673835582632,51.92,23.509,23.464,31.98]
[1673835582959,51.92,23.509,23.465,27.50587634]
[1673835583151,20.5,23.5,23.466,31.98]
[1673835583367,51.93,23.499,23.466,31.98]
[1673835583577,51.93,23.499,23.464,31.98]
[1673835583792,51.93,23.499,23.467,21.46196354]
[1673835584003,51.93,23.499,23.469,129.3]
[1673835584209,51.93,23.499,23.47,31.97]
[1673835584426,51.93,23.499,23.462,31.98]
[1673835584620,20.41,23.49,23.462,31.98]
[1673835584837,51.94,23.489,23.461,118.2694]
[1673835585265,51.94,23.489,23.46,402.0]
[1673835585593,20.6,23.48,23.442,150.6126]
[1673835585784,51.96,23.479,23.45,21.46196354]
[1673835585998,51.96,23.479,23.451,32.0]
[1673835586208,31.96,23.479,23.451,58.68860968]
[1673835586540,31.94,23.489,23.452,21.46196354]
[1673835586726,20.0,23.488,23.453,31.99]
[1673835586937,31.95,23.487,23.454,17.0]
[1673835587169,31.95,23.487,23.455,31.99]
[1673835587378,31.93,23.499,23.456,17.0]
[1673835587581,31.93,23.499,23.457,51.99]
[1673835587778,31.93,23.499,23.458,17.0]
[1673835587986,31.93,23.499,23.459,51.99]
[1673835588193,31.93,23.499,23.459,73.45196354]
[1673835588407,31.93,23.499,23.46,38.46196354]
[1673835588635,31.93,23.499,23.461,51.98]
[1673835588957,31.93,23.499,23.461,80.13057322]
[1673835589170,31.93,23.499,23.462,48.15057322]
[1673835589381,20.0,23.498,23.463,31.98]
[1673835589685,31.93,23.497,23.463,53.44196354]
[1673835589901,31.93,23.497,23.464,26.68860968]
[1673835590111,20.62,23.49,23.459,21.46196354]
[1673835590301,51.94,23.489,23.459,21.46196354]
[1673835590511,51.94,23.489,23.457,31.99]
[1673835590844,51.94,23.489,23.458,17.0]
[1673835591053,51.94,23.489,23.458,87.53854301]
[1673835591368,51.94,23.489,23.459,21.46196354]
[1673835591583,51.94,23.489,23.456,402.0]
[1673835592106,51.94,23.489,23.456,423.46196354]
[1673835592305,51.94,23.489,23.456,448.46161322]
[1673835592514,51.94,23.489,23.456,467.31189687]
[1673835592726,51.94,23.489,23.457,31.99]
[1673835593145,51.94,23.489,23.458,43.84993333]
[1673835593350,51.94,23.489,23.459,17.0]
[1673835593556,51.94,23.489,23.457,53.45196354]
[1673835593557,51.94,23.489,23.458,17.0]
[1673835593767,51.94,23.489,23.458,60.84993333]
[1673835593980,51.94,23.489,23.459,24.99964968]
[1673835594203,51.94,23.489,23.46,17.0]
[1673835594418,31.94,23.489,23.46,114.29189687]
[1673835594623,31.93,23.499,23.462,129.3]
[1673835594839,31.93,23.499,23.464,129.3]
[1673835595041,31.92,23.509,23.466,129.3]
[1673835595257,31.92,23.509,23.468,129.3]
[1673835595448,31.92,23.509,23.47,129.3]
[1673835595661,31.92,23.509,23.472,129.3]
[1673835595987,31.92,23.509,23.474,129.3]
[1673835596193,31.92,23.509,23.476,129.3]
[1673835596404,31.92,23.509,23.477,48.96]
[1673835596731,31.92,23.509,23.478,129.3]
[1673835596926,31.92,23.509,23.479,48.96]
[1673835597131,31.92,23.509,23.479,178.26]
[1673835597342,31.92,23.509,23.479,226.88800635]
[1673835597561,31.92,23.509,23.48,30.51921742]
[1673835597780,20.74,23.52,23.479,70.42196354]
[1673835597781,31.91,23.518,23.481,17.0]
[1673835597987,20.62,23.51,23.479,38.46196354]
[1673835598182,31.92,23.509,23.48,31.96]
[1673835598391,31.92,23.509,23.481,17.0]
[1673835598807,37.0,23.508,23.478,31.96]
[1673835599029,37.0,23.508,23.463,133.27586312]
[1673835599030,20.62,23.5,23.472,31.97]
[1673835599243,51.93,23.499,23.464,31.98]
[1673835599442,51.93,23.499,23.467,21.46196354]
[1673835599648,51.93,23.499,23.472,29.37667402]
[1673835599988,51.93,23.499,23.473,31.97]
[1673835600184,51.93,23.499,23.471,118.3957]
[1673835600604,20.49,23.49,23.469,29.37667402]
[1673835600806,51.94,23.489,23.469,29.37667402]
[1673835601012,51.94,23.489,23.457,182.75196354]
[1673835601231,51.94,23.489,23.457,212.12863756]
[1673835601438,31.94,23.489,23.459,129.3]
[1673835601659,20.0,23.488,23.46,31.98]
[1673835601885,20.0,23.488,23.461,129.3]
[1673835602102,31.93,23.499,23.461,129.3]
[1673835602103,31.95,23.487,23.462,31.98]
[1673835602306,20.0,23.486,23.462,161.28]
[1673835602519,20.0,23.486,23.463,42.92392708]
[1673835602733,20.0,23.498,23.464,161.28]
[1673835602923,31.92,23.506,23.47,20.62]
[1673835603134,113.3959,23.507,23.472,129.3]
[1673835603352,31.92,23.506,23.474,129.3]
[1673835603560,31.92,23.506,23.476,129.3]
[1673835603765,31.92,23.506,23.477,161.26]
[1673835603986,31.92,23.506,23.478,17.0]
[1673835604187,113.3959,23.507,23.479,161.26]
[1673835604395,113.3959,23.507,23.48,17.0]
[1673835604611,113.3959,23.507,23.481,31.96]
[1673835604838,31.92,23.506,23.482,17.0]
[1673835605259,20.62,23.51,23.482,193.37323768]
[1673835605471,31.92,23.509,23.483,76.428343]
[1673835605664,31.9,23.519,23.484,17.0]
[1673835605873,31.9,23.519,23.484,64.07323768]
[1673835606080,31.9,23.519,23.485,47.07323768]
[1673835606294,20.0,23.518,23.486,17.0]
[1673835606505,31.91,23.517,23.486,17.0]
[1673835606719,31.91,23.517,23.487,47.07323768]
[1673835606720,20.0,23.516,23.487,47.07323768]
[1673835606937,31.91,23.515,23.488,17.0]
[1673835607137,20.49,23.51,23.488,17.0]
[1673835607348,51.92,23.509,23.488,67.02286104]
[1673835607554,51.92,23.509,23.481,31.96]
[1673835607765,51.92,23.509,23.485,29.35510532]
[1673835607766,20.55,23.5,23.485,29.35510532]
[1673835608097,31.93,23.499,23.464,143.1641]
[1673835608290,20.0,23.498,23.465,27.00569159]
[1673835608493,20.62,23.49,23.454,129.3]
[1673835608820,51.94,23.489,23.453,143.1741]
[1673835609254,51.94,23.489,23.455,21.46196354]
[1673835609447,51.94,23.489,23.456,31.99]
[1673835609651,31.94,23.489,23.457,129.3]
[1673835609867,20.55,23.5,23.46,20.62]
[1673835610087,20.0,23.499,23.462,129.3]
[1673835610281,20.0,23.499,23.464,129.3]
[1673835610488,31.93,23.498,23.466,129.3]
[1673835610724,20.0,23.497,23.467,161.27]
[1673835610937,31.94,23.496,23.468,17.0]
[1673835611135,20.0,23.495,23.469,129.3]
[1673835611340,31.94,23.496,23.471,129.3]
[1673835611663,31.93,23.499,23.472,80.12685228]
[1673835611876,82.4,23.52,23.473,129.3]
[1673835611877,20.45,23.51,23.473,129.3]
[1673835612081,31.9,23.519,23.48,20.62]
[1673835612398,31.89,23.528,23.49,20.62]
[1673835612601,31.89,23.529,23.492,129.3]
[1673835612799,31.89,23.529,23.494,129.3]
[1673835612800,30.89,23.529,23.494,129.3]
[1673835613015,67.85603327,23.529,23.496,129.3]
[1673835613348,31.89,23.528,23.498,129.3]
[1673835613562,31.89,23.528,23.497,48.93]
[1673835613563,31.89,23.528,23.499,31.93]
[1673835613768,20.0,23.527,23.5,17.0]
[1673835613980,31.89,23.526,23.5,48.93]
[1673835614175,31.89,23.527,23.5,61.48764277]
[1673835614387,67.85603327,23.527,23.501,41.63977611]
[1673835614590,31.89,23.526,23.502,17.0]
[1673835615025,31.88,23.533,23.503,41.63977611]
[1673835615343,31.88,23.533,23.504,146.3]
[1673835615543,31.88,23.533,23.504,178.96607896]
[1673835615759,31.88,23.533,23.506,129.3]
[1673835615966,42.7308,23.534,23.507,48.92]
[1673835616169,31.88,23.533,23.507,17.0]
[1673835616377,20.62,23.53,23.499,31.93]
[1673835616598,31.89,23.529,23.501,27.4267921]
[1673835616937,20.0,23.528,23.501,27.4267921]
[1673835617112,31.89,23.527,23.501,64.05145421]
[1673835617319,20.0,23.526,23.501,64.05145421]
[1673835617556,31.9,23.525,23.502,36.62466211]
[1673835617771,20.0,23.524,23.494,31.94]
[1673835617961,31.9,23.523,23.494,31.94]
[1673835618167,20.0,23.522,23.494,31.94]
[1673835618383,31.9,23.521,23.494,31.94]
[1673835618918,30.9,23.521,23.494,161.24]
[1673835619133,30.9,23.521,23.494,31.94]
[1673835619450,20.0,23.522,23.495,212.25245902]
[1673835619659,20.62,23.53,23.497,129.3]
[1673835619977,31.89,23.529,23.499,129.3]
[1673835620181,31.88,23.533,23.501,129.3]
[1673835620390,20.0,23.532,23.503,129.3]
[1673835620595,31.89,23.531,23.504,48.92]
[1673835620814,31.89,23.531,23.504,189.07489745]
[1673835621004,20.0,23.532,23.505,85.74962622]
[1673835621210,20.0,23.533,23.506,31.92]
[1673835621427,31.89,23.532,23.507,17.0]
[1673835621648,20.0,23.533,23.508,31.92]
[1673835621962,42.7308,23.534,23.509,17.0]
[1673835622182,42.7308,23.534,23.51,161.22]
[1673835622500,42.7308,23.534,23.511,17.0]
[1673835622705,42.7308,23.534,23.513,129.3]
[1673835622918,42.7308,23.534,23.514,178.21]
[1673835623115,42.7308,23.534,23.514,199.67196354]
[1673835623324,42.7308,23.534,23.514,272.07097405]
[1673835623531,0.0008,23.534,23.52,20.62]
[1673835623741,31.85,23.559,23.52,20.62]
[1673835623742,31.85,23.559,23.521,198.2]
[1673835624073,31.85,23.559,23.521,68.9]
[1673835624697,16.997159,23.556,23.521,68.9]
[1673835624894,51.86,23.555,23.521,68.9]
[1673835625330,51.86,23.555,23.521,51.9]
[1673835625536,51.86,23.555,23.522,31.50428174]
[1673835625956,51.86,23.555,23.517,31.91]
[1673835626178,16.997159,23.556,23.53,20.62]
[1673835626367,16.997159,23.556,23.531,31.89]
[1673835626802,16.997159,23.556,23.531,53.54749755]
[1673835627013,16.997159,23.556,23.533,129.3]
[1673835627218,16.997159,23.556,23.534,31.88]
[1673835627424,16.997159,23.556,23.535,17.0]
[1673835627638,16.997159,23.556,23.536,31.88]
[1673835627959,16.997159,23.556,23.537,17.0]
[1673835628273,16.997159,23.556,23.538,31.88]
[1673835628486,16.997159,23.556,23.539,17.0]
[1673835628694,16.997159,23.556,23.54,31.88]
[1673835628903,16.997159,23.556,23.541,17.0]
[1673835629117,16.997159,23.556,23.541,54.55917562]
[1673835629640,16.997159,23.556,23.542,81.86077106]
[1673835629842,16.997159,23.556,23.543,17.0]
[1673835630256,16.997159,23.556,23.537,31.88]
[1673835630463,16.997159,23.556,23.542,36.0783392]
[1673835630693,16.997159,23.556,23.544,44.30159544]
[1673835631105,16.997159,23.556,23.545,36.0783392]
[1673835631315,16.997159,23.556,23.538,31.88]
[1673835631525,16.997159,23.556,23.534,31.88]
[1673835631857,16.997159,23.556,23.531,160.56339544]
[1673835632170,51.86,23.555,23.531,116.2618]
[1673835632779,51.86,23.555,23.525,402.0]
[1673835633510,51.86,23.555,23.526,34.2528358]
[1673835634142,51.86,23.555,23.525,402.0]
[1673835634368,20.49,23.55,23.526,34.2528358]
[1673835634565,51.86,23.549,23.526,34.2528358]
[1673835635205,51.86,23.549,23.515,31.91]
[1673835635410,51.86,23.549,23.51,31.92]
[1673835635411,20.49,23.54,23.51,31.92]
[1673835635613,31.88,23.539,23.502,31.93]
[1673835635822,20.0,23.538,23.501,114.6415]
[1673835636146,31.88,23.537,23.501,114.6415]
[1673835636357,20.0,23.536,23.501,114.6415]
[1673835636573,31.88,23.535,23.497,53.39196354]
[1673835636784,31.88,23.535,23.497,118.247]
[1673835636785,20.49,23.53,23.497,118.247]
[1673835637120,51.89,23.529,23.497,118.247]
[1673835637413,51.89,23.529,23.494,31.94]
[1673835637631,20.49,23.52,23.488,21.46196354]
[1673835637939,51.9,23.519,23.49,53.40196354]
[1673835638344,51.9,23.519,23.491,21.46196354]
[1673835638563,51.9,23.519,23.492,31.94]
[1673835638776,51.9,23.519,23.49,31.94]
[1673835638974,51.9,23.519,23.492,44.30159544]
[1673835639309,31.9,23.519,23.49,80.12263314]
[1673835639498,20.49,23.53,23.49,80.12263314]
[1673835639499,31.89,23.529,23.493,48.18263314]
[1673835639708,20.0,23.528,23.494,31.94]
[1673835639916,31.89,23.527,23.494,80.12263314]
[1673835640129,20.0,23.526,23.494,53.40196354]
[1673835640350,31.9,23.525,23.495,17.0]
[1673835640567,20.0,23.524,23.495,48.94]
[1673835640769,31.9,23.523,23.495,31.94]
[1673835640985,20.0,23.522,23.494,21.46196354]
[1673835641193,31.9,23.521,23.496,71.02226504]
[1673835641393,20.0,23.52,23.496,44.30159544]
[1673835641600,31.9,23.519,23.497,42.92392708]
[1673835641812,20.0,23.522,23.498,31.93]
[1673835641813,31.9,23.521,23.498,31.93]
[1673835642235,31.9,23.521,23.499,17.0]
[1673835642657,31.9,23.521,23.492,76.24159544]
[1673835642870,31.89,23.529,23.5,44.30159544]
[1673835643085,31.89,23.529,23.501,31.93]
[1673835643297,31.88,23.537,23.502,20.0]
[1673835643504,31.88,23.539,23.503,31.93]
[1673835643831,31.86,23.549,23.504,42.89527354]
[1673835644020,31.86,23.549,23.505,185.65313]
[1673835644235,31.86,23.549,23.51,20.62]
[1673835644554,31.86,23.549,23.511,232.12190819]
[1673835644759,20.0,23.548,23.512,24.43181]
[1673835644981,31.87,23.547,23.513,53.34162]
[1673835645297,20.0,23.546,23.514,4.43143]
[1673835645489,31.87,23.545,23.515,17.0]
[1673835645698,31.87,23.545,23.516,4.43105]
[1673835645908,31.86,23.549,23.517,48.91]
[1673835646138,31.86,23.554,23.518,4.43068]
[1673835646329,20.62,23.55,23.509,144.3705]
[1673835646540,20.62,23.54,23.51,4.43218]
[1673835646767,31.88,23.539,23.51,4.43218]
[1673835646972,31.88,23.539,23.511,56.45937709]
[1673835647175,20.0,23.538,23.512,4.43181]
[1673835647387,31.88,23.537,23.512,4.43181]
[1673835647592,20.0,23.536,23.512,4.43181]
[1673835647823,31.88,23.535,23.512,4.43181]
[1673835648016,20.0,23.534,23.512,4.43181]
[1673835648345,20.0,23.534,23.512,28.98118709]
[1673835648661,20.0,23.534,23.513,31.91]
[1673835648979,20.49,23.55,23.514,4.43143]
[1673835649162,51.86,23.549,23.515,17.0]
[1673835649382,51.86,23.549,23.516,4.43105]
[1673835649592,51.86,23.549,23.517,17.0]
[1673835649807,51.86,23.549,23.518,4.43068]
[1673835650023,51.86,23.549,23.519,17.0]
[1673835650232,51.86,23.549,23.502,402.0]
[1673835650554,20.45,23.54,23.506,116.88344]
[1673835650866,68.88,23.539,23.506,4.43294]
[1673835651057,51.88,23.539,23.506,4.43294]
[1673835652525,20.62,23.53,23.506,4.43294]
[1673835652856,51.89,23.529,23.502,402.0]
[1673835653279,51.89,23.529,23.503,4.4335]
[1673835654204,51.89,23.529,23.502,402.0]
[1673835655258,31.89,23.529,23.502,402.0]
[1673835655469,20.0,23.528,23.502,402.0]
[1673835655688,31.89,23.527,23.502,402.0]
[1673835655921,20.0,23.526,23.502,402.0]
[1673835656118,31.9,23.525,23.502,402.0]
[1673835656428,20.0,23.524,23.502,402.0]
[1673835656749,31.9,23.523,23.502,402.0]
[1673835656960,20.0,23.522,23.49,31.94]
[1673835657169,20.55,23.52,23.49,36.37596]
[1673835657376,31.9,23.519,23.49,36.37596]
[1673835657908,20.0,23.518,23.49,36.37596]
[1673835658105,31.91,23.517,23.491,4.43577]
[1673835658308,20.0,23.516,23.491,25.89773354]
[1673835658514,31.91,23.515,23.492,21.46196354]
[1673835658725,20.0,23.514,23.493,133.73539]
[1673835658944,20.0,23.514,23.494,4.4352]
[1673835659144,20.0,23.514,23.494,25.89716354]
[1673835659356,20.0,23.528,23.495,38.46196354]
[1673835659695,20.0,23.528,23.494,35.35157944]
[1673835659696,31.89,23.527,23.494,4.4352]
[1673835659894,20.0,23.526,23.494,4.4352]
[1673835660220,31.9,23.525,23.494,4.4352]
[1673835660411,20.0,23.524,23.494,4.4352]
[1673835660743,31.9,23.523,23.489,114.4845]
[1673835660953,20.0,23.522,23.489,114.4845]
[1673835661269,31.9,23.521,23.49,57.83792354]
[1673835661457,20.0,23.52,23.491,4.43577]
[1673835661664,31.9,23.519,23.491,25.89773354]
[1673835662092,20.0,23.518,23.49,31.94]
[1673835662313,31.91,23.517,23.477,129.3]
[1673835662519,211.08178695,23.556,23.482,21.46196354]
[1673835662739,20.0,23.533,23.484,129.3]
[1673835662930,20.0,23.533,23.486,129.3]
[1673835663141,31.89,23.532,23.488,129.3]
[1673835663367,31.89,23.532,23.49,129.3]
[1673835663572,31.88,23.537,23.492,129.3]
[1673835663776,31.88,23.537,23.491,175.35437]
[1673835663777,31.88,23.539,23.494,129.3]
[1673835663998,31.88,23.539,23.496,129.3]
[1673835664204,31.88,23.539,23.498,129.3]
[1673835664415,31.88,23.539,23.5,129.3]
[1673835664624,31.88,23.539,23.502,129.3]
[1673835664844,20.0,23.538,23.504,129.3]
[1673835665041,31.88,23.537,23.505,165.65313]
[1673835665375,20.49,23.55,23.506,21.43294]
[1673835665683,31.86,23.549,23.508,129.3]
[1673835665900,31.86,23.555,23.51,129.3]
[1673835666211,31.86,23.555,23.512,129.3]
[1673835666424,31.86,23.555,23.514,129.3]
[1673835666616,31.86,23.555,23.516,129.3]
[1673835666828,31.86,23.555,23.517,182.64086]
[1673835667043,31.86,23.555,23.518,4.43068]
[1673835667240,31.86,23.555,23.519,178.2]
[1673835667454,31.86,23.555,23.52,4.4303]
[1673835667684,31.86,23.555,23.522,129.3]
[1673835667892,31.86,23.555,23.523,53.32973]
[1673835668080,16.997159,23.556,23.524,4.42955]
[1673835668293,31.86,23.555,23.525,48.9]
[1673835668500,31.86,23.555,23.526,4.42917]
[1673835668731,20.0,23.554,23.527,48.89]
[1673835668918,115.3562,23.583,23.528,133.72879]
[1673835669133,115.3562,23.583,23.53,129.3]
[1673835669369,31.83,23.572,23.531,182.61823]